[Event "GrandPrix_30.05"]
[Site "Chess.com"]
[Date "2020.05.30"]
[Round "7"]
[White "tsaruk_maks"]
[Black "Frozygul"]
[Result "1-0"]
[WhiteElo "2383"]
[BlackElo "2190"]
[TimeControl "600+2"]
[EndTime "11:23:34 PDT"]
[Termination "tsaruk_maks won by resignation"]

1. e4 {[%clk 0:10:01.9]} 1... Nf6 {[%clk 0:10:00.6]} 2. e5 {[%clk 0:10:02.2]}
2... Nd5 {[%clk 0:10:01.6]} 3. d4 {[%clk 0:10:03.9]} 3... d6 {[%clk 0:10:02.2]}
4. Nf3 {[%clk 0:10:05.6]} 4... dxe5 {[%clk 0:10:03.1]} 5. Nxe5 {[%clk
0:10:06.5]} 5... c6 {[%clk 0:10:02.9]} 6. Bc4 {[%clk 0:10:05.7]} 6... Bf5 {[%clk
0:09:50.6]} 7. Qf3 {[%clk 0:09:42.9]} 7... e6 {[%clk 0:09:50.1]} 8. Bd3 {[%clk
0:07:02.9]} 8... Qf6 {[%clk 0:09:11.3]} 9. Bxf5 {[%clk 0:06:59.5]} 9... Qxf5
{[%clk 0:09:13.2]} 10. Qxf5 {[%clk 0:07:00.5]} 10... exf5 {[%clk 0:09:15.1]} 11.
O-O {[%clk 0:07:01.8]} 11... Be7 {[%clk 0:09:14.4]} 12. c3 {[%clk 0:07:01.7]}
12... O-O {[%clk 0:09:14.2]} 13. Nd2 {[%clk 0:06:59]} 13... g6 {[%clk 0:09:15]}
14. Nb3 {[%clk 0:06:53]} 14... Bf6 {[%clk 0:09:10.7]} 15. Nd3 {[%clk 0:06:38.3]}
15... Nd7 {[%clk 0:09:06.1]} 16. a4 {[%clk 0:06:38.4]} 16... b6 {[%clk
0:08:49.5]} 17. a5 {[%clk 0:06:37]} 17... Rfe8 {[%clk 0:08:49.5]} 18. axb6
{[%clk 0:06:19.2]} 18... axb6 {[%clk 0:08:51.4]} 19. Bd2 {[%clk 0:06:20.2]}
19... b5 {[%clk 0:08:10.3]} 20. Na5 {[%clk 0:05:22]} 20... Ra6 {[%clk
0:07:55.4]} 21. b4 {[%clk 0:04:28.9]} 21... Rea8 {[%clk 0:06:37.6]} 22. Ra3
{[%clk 0:04:10.5]} 22... N5b6 {[%clk 0:06:32.3]} 23. Rfa1 {[%clk 0:04:00.7]}
23... Nb8 {[%clk 0:06:31.1]} 24. Nc5 {[%clk 0:03:55.6]} 24... R6a7 {[%clk
0:06:28.9]} 25. Bf4 {[%clk 0:03:55.1]} 25... N8d7 {[%clk 0:06:15.1]} 26. Bd6
{[%clk 0:03:25.1]} 26... Nxc5 {[%clk 0:06:12.3]} 27. Bxc5 {[%clk 0:03:25.9]}
27... Bd8 {[%clk 0:06:12.1]} 28. Kf1 {[%clk 0:03:02.1]} 28... Ra6 {[%clk
0:06:12.5]} 29. Bxb6 {[%clk 0:02:47.7]} 29... Bxb6 {[%clk 0:06:12.8]} 30. Nc4
{[%clk 0:02:47.9]} 30... Rxa3 {[%clk 0:06:13.2]} 31. Rxa3 {[%clk 0:02:49.8]}
31... Rxa3 {[%clk 0:06:14.2]} 32. Nxa3 {[%clk 0:02:51.7]} 32... Kf8 {[%clk
0:06:11.3]} 33. Ke2 {[%clk 0:02:52.3]} 33... Ke7 {[%clk 0:05:48.5]} 34. d5
{[%clk 0:02:32.3]} 34... Kd6 {[%clk 0:05:46.6]} 35. dxc6 {[%clk 0:02:33.4]}
35... Kxc6 {[%clk 0:05:48.5]} 36. f3 {[%clk 0:02:34.3]} 36... Bc7 {[%clk
0:05:48.7]} 37. h3 {[%clk 0:02:35.4]} 37... h5 {[%clk 0:05:41.8]} 38. Kd3 {[%clk
0:02:35.4]} 38... Be5 {[%clk 0:05:40]} 39. Nc2 {[%clk 0:02:08.9]} 39... Bf6
{[%clk 0:05:14.1]} 40. Nd4+ {[%clk 0:02:08]} 40... Kb6 {[%clk 0:05:15.5]} 41. c4
{[%clk 0:02:04.1]} 41... bxc4+ {[%clk 0:05:17.3]} 42. Kxc4 {[%clk 0:02:05.6]}
42... f4 {[%clk 0:04:53.4]} 43. Ne2 {[%clk 0:02:01.1]} 43... g5 {[%clk
0:04:55.3]} 44. Nc3 {[%clk 0:02:00.3]} 44... Bg7 {[%clk 0:04:38]} 45. Nd5+
{[%clk 0:01:46.5]} 45... Kb7 {[%clk 0:04:37.9]} 46. b5 {[%clk 0:01:47.3]} 46...
f5 {[%clk 0:04:37.6]} 47. Ne7 {[%clk 0:01:46.5]} 47... g4 {[%clk 0:04:38.8]} 48.
Nxf5 {[%clk 0:01:47.3]} 48... gxh3 {[%clk 0:04:39.6]} 49. gxh3 {[%clk
0:01:48.5]} 49... Be5 {[%clk 0:04:37.8]} 50. Ne7 {[%clk 0:01:36.4]} 50... Bb8
{[%clk 0:04:36.7]} 51. Nd5 {[%clk 0:01:36.4]} 51... Bd6 {[%clk 0:04:34.4]} 52.
Kd4 {[%clk 0:01:37.4]} 1-0

[Event "GrandPrix_30.05"]
[Site "Chess.com"]
[Date "2020.05.30"]
[Round "7"]
[White "aleksandrovaleksei"]
[Black "KuzubovYuriy"]
[Result "0-1"]
[WhiteElo "2548"]
[BlackElo "2578"]
[TimeControl "600+2"]
[EndTime "11:23:45 PDT"]
[Termination "KuzubovYuriy won by checkmate"]

1. d4 {[%clk 0:10:01.9]} 1... Nf6 {[%clk 0:09:59.6]} 2. c4 {[%clk 0:10:02.4]}
2... e6 {[%clk 0:10:01]} 3. Nc3 {[%clk 0:10:03.1]} 3... Bb4 {[%clk 0:10:02]} 4.
e3 {[%clk 0:10:04.2]} 4... O-O {[%clk 0:10:01]} 5. Ne2 {[%clk 0:09:59.8]} 5...
c6 {[%clk 0:09:59]} 6. a3 {[%clk 0:09:50.6]} 6... Ba5 {[%clk 0:09:59.2]} 7. Bd2
{[%clk 0:09:51.6]} 7... d5 {[%clk 0:09:37.3]} 8. cxd5 {[%clk 0:09:52]} 8... exd5
{[%clk 0:09:36.5]} 9. g3 {[%clk 0:09:50.8]} 9... Re8 {[%clk 0:09:00.7]} 10. Bg2
{[%clk 0:09:49.7]} 10... Nbd7 {[%clk 0:09:01.3]} 11. O-O {[%clk 0:09:47.1]}
11... Nf8 {[%clk 0:09:02]} 12. b4 {[%clk 0:08:46.5]} 12... Bc7 {[%clk
0:09:02.4]} 13. b5 {[%clk 0:08:47.2]} 13... Bf5 {[%clk 0:08:32.8]} 14. Qa4
{[%clk 0:08:26.7]} 14... Re6 {[%clk 0:06:48.9]} 15. Nc1 {[%clk 0:07:07.8]} 15...
N8d7 {[%clk 0:06:12.6]} 16. bxc6 {[%clk 0:07:04.4]} 16... bxc6 {[%clk
0:06:04.8]} 17. Qd1 {[%clk 0:06:52]} 17... Nb6 {[%clk 0:05:53.4]} 18. Nb3 {[%clk
0:06:23.7]} 18... Nc4 {[%clk 0:05:53.6]} 19. Nc5 {[%clk 0:06:22.6]} 19... Re8
{[%clk 0:05:52.3]} 20. Qe2 {[%clk 0:05:16.7]} 20... Rb8 {[%clk 0:05:34.8]} 21.
Ra2 {[%clk 0:04:53.4]} 21... Bd6 {[%clk 0:05:31.2]} 22. N3a4 {[%clk 0:04:50.8]}
22... h5 {[%clk 0:05:16.9]} 23. Rc1 {[%clk 0:04:32.7]} 23... h4 {[%clk
0:05:06.5]} 24. Be1 {[%clk 0:04:31.6]} 24... hxg3 {[%clk 0:04:59.8]} 25. hxg3
{[%clk 0:04:32.1]} 25... Ng4 {[%clk 0:04:14.5]} 26. Na6 {[%clk 0:03:52.2]} 26...
Rc8 {[%clk 0:03:50]} 27. Nb2 {[%clk 0:03:40.7]} 27... Ncxe3 {[%clk 0:03:33]} 28.
fxe3 {[%clk 0:03:37.3]} 28... Rxe3 {[%clk 0:03:33.9]} 29. Qf1 {[%clk 0:03:25.8]}
29... Qg5 {[%clk 0:03:26.1]} 30. Nb4 {[%clk 0:01:52.2]} 30... Qh5 {[%clk
0:02:52.7]} 31. Qa6 {[%clk 0:01:49.1]} 31... Qh2+ {[%clk 0:02:49.6]} 32. Kf1
{[%clk 0:01:49.4]} 32... Rf3+ {[%clk 0:02:49.1]} 33. Bxf3 {[%clk 0:01:47.3]}
33... Ne3# {[%clk 0:02:49]} 0-1

[Event "GrandPrix_30.05"]
[Site "Chess.com"]
[Date "2020.05.30"]
[Round "7"]
[White "Kobalia"]
[Black "Murad_Ibrahimli"]
[Result "1-0"]
[WhiteElo "2494"]
[BlackElo "2553"]
[TimeControl "600+2"]
[EndTime "11:24:00 PDT"]
[Termination "Kobalia won by checkmate"]

1. e4 {[%clk 0:10:00]} 1... c5 {[%clk 0:09:54.9]} 2. Nf3 {[%clk 0:09:58.2]} 2...
d6 {[%clk 0:09:55.6]} 3. Bb5+ {[%clk 0:09:57.6]} 3... Nd7 {[%clk 0:09:55.1]} 4.
O-O {[%clk 0:09:58]} 4... Nf6 {[%clk 0:09:52.8]} 5. Re1 {[%clk 0:09:56.4]} 5...
e5 {[%clk 0:09:50.9]} 6. c3 {[%clk 0:09:56.6]} 6... Be7 {[%clk 0:09:47.8]} 7. d4
{[%clk 0:09:55.8]} 7... cxd4 {[%clk 0:09:41.2]} 8. cxd4 {[%clk 0:09:55.4]} 8...
O-O {[%clk 0:09:42.6]} 9. Nc3 {[%clk 0:09:55.6]} 9... a6 {[%clk 0:09:19.5]} 10.
Ba4 {[%clk 0:09:36.8]} 10... b5 {[%clk 0:09:16.3]} 11. Bb3 {[%clk 0:09:37.5]}
11... Bb7 {[%clk 0:09:17.6]} 12. Bg5 {[%clk 0:09:37.5]} 12... exd4 {[%clk
0:06:52.6]} 13. Nxd4 {[%clk 0:09:32.7]} 13... b4 {[%clk 0:06:22.2]} 14. Bxf6
{[%clk 0:09:25.3]} 14... Nxf6 {[%clk 0:06:07.2]} 15. Nd5 {[%clk 0:09:20.8]}
15... Nxd5 {[%clk 0:06:08.3]} 16. Bxd5 {[%clk 0:08:33.4]} 16... Bxd5 {[%clk
0:06:08.2]} 17. exd5 {[%clk 0:08:33.9]} 17... Bf6 {[%clk 0:06:09.6]} 18. Nc6
{[%clk 0:08:34.8]} 18... Qb6 {[%clk 0:06:08.6]} 19. Qd2 {[%clk 0:07:52.4]} 19...
a5 {[%clk 0:06:05]} 20. Re4 {[%clk 0:07:49.7]} 20... Rfe8 {[%clk 0:06:04.3]} 21.
Rae1 {[%clk 0:07:47]} 21... Rxe4 {[%clk 0:06:03.6]} 22. Rxe4 {[%clk 0:07:48]}
22... h6 {[%clk 0:06:01.9]} 23. g3 {[%clk 0:07:20.8]} 23... Qc5 {[%clk
0:04:51.7]} 24. b3 {[%clk 0:07:06.9]} 24... a4 {[%clk 0:04:18.1]} 25. Rc4 {[%clk
0:06:30.2]} 25... Bc3 {[%clk 0:02:33.8]} 26. Qd3 {[%clk 0:06:21.4]} 26... axb3
{[%clk 0:02:17.2]} 27. axb3 {[%clk 0:06:17.3]} 27... Qb6 {[%clk 0:02:15.5]} 28.
Qf5 {[%clk 0:05:37.2]} 28... Qb5 {[%clk 0:00:43.1]} 29. Ne7+ {[%clk 0:04:40.2]}
29... Kf8 {[%clk 0:00:38.4]} 30. Ng6+ {[%clk 0:04:40.5]} 30... Kg8 {[%clk
0:00:38]} 31. Rc8+ {[%clk 0:04:16.2]} 31... Rxc8 {[%clk 0:00:37.2]} 32. Qxc8+
{[%clk 0:04:15.4]} 32... Kh7 {[%clk 0:00:39.1]} 33. Ne7 {[%clk 0:04:07.1]} 33...
h5 {[%clk 0:00:22.1]} 34. Qf5+ {[%clk 0:04:04.9]} 34... Kh6 {[%clk 0:00:23.4]}
35. Ng8# {[%clk 0:04:05.6]} 1-0

[Event "GrandPrix_30.05"]
[Site "Chess.com"]
[Date "2020.05.30"]
[Round "7"]
[White "Arm-Akiba"]
[Black "WhiteCapital80"]
[Result "1/2-1/2"]
[WhiteElo "2682"]
[BlackElo "2436"]
[TimeControl "600+2"]
[EndTime "11:24:05 PDT"]
[Termination "Game drawn by repetition"]

1. d4 {[%clk 0:10:01.9]} 1... e6 {[%clk 0:09:38.2]} 2. c4 {[%clk 0:10:02.3]}
2... d5 {[%clk 0:09:36.7]} 3. Nf3 {[%clk 0:10:02.3]} 3... Nf6 {[%clk 0:09:33.9]}
4. g3 {[%clk 0:10:02.7]} 4... Be7 {[%clk 0:09:34.6]} 5. Bg2 {[%clk 0:10:03]}
5... O-O {[%clk 0:09:36.1]} 6. O-O {[%clk 0:10:03.9]} 6... dxc4 {[%clk 0:09:37]}
7. Qc2 {[%clk 0:10:03.9]} 7... a6 {[%clk 0:09:37.4]} 8. a4 {[%clk 0:10:04.5]}
8... Bd7 {[%clk 0:09:38]} 9. Qxc4 {[%clk 0:10:05.2]} 9... Bc6 {[%clk 0:09:39]}
10. Bf4 {[%clk 0:10:05.8]} 10... Nbd7 {[%clk 0:08:09]} 11. Nc3 {[%clk
0:10:05.3]} 11... Nb6 {[%clk 0:07:59.8]} 12. Qb3 {[%clk 0:09:39.4]} 12... Nfd5
{[%clk 0:07:35.5]} 13. Bd2 {[%clk 0:09:16.3]} 13... Nxc3 {[%clk 0:07:33.2]} 14.
bxc3 {[%clk 0:09:16.8]} 14... Bd5 {[%clk 0:07:29.6]} 15. Qc2 {[%clk 0:09:16.2]}
15... f5 {[%clk 0:07:15.9]} 16. Rfe1 {[%clk 0:09:00.8]} 16... Nc4 {[%clk
0:07:09.2]} 17. Bf4 {[%clk 0:09:00.2]} 17... g5 {[%clk 0:06:37.5]} 18. Bc1
{[%clk 0:08:48.3]} 18... b5 {[%clk 0:06:26.2]} 19. Nd2 {[%clk 0:08:19.6]} 19...
Bxg2 {[%clk 0:06:16.3]} 20. Kxg2 {[%clk 0:08:21.5]} 20... c5 {[%clk 0:06:08.4]}
21. Nxc4 {[%clk 0:08:10.1]} 21... bxc4 {[%clk 0:05:53.6]} 22. Ba3 {[%clk
0:06:39.3]} 22... cxd4 {[%clk 0:05:43.4]} 23. Bxe7 {[%clk 0:06:36.5]} 23... Qxe7
{[%clk 0:05:44.3]} 24. cxd4 {[%clk 0:06:37.8]} 24... Rac8 {[%clk 0:05:35.8]} 25.
Rab1 {[%clk 0:06:27.6]} 25... Qd7 {[%clk 0:05:28.6]} 26. Qc3 {[%clk 0:06:01.3]}
26... Rfd8 {[%clk 0:04:42.4]} 27. Red1 {[%clk 0:05:17.9]} 27... Qxa4 {[%clk
0:04:41]} 28. d5 {[%clk 0:05:19.3]} 28... exd5 {[%clk 0:04:05.1]} 29. Rd4 {[%clk
0:03:58.2]} 29... Qc6 {[%clk 0:03:51]} 30. Ra1 {[%clk 0:03:36.7]} 30... Qe6
{[%clk 0:03:36.4]} 31. e3 {[%clk 0:03:29.8]} 31... h6 {[%clk 0:03:25.5]} 32. Ra5
{[%clk 0:03:18.5]} 32... Rd6 {[%clk 0:03:07.8]} 33. h4 {[%clk 0:03:17.3]} 33...
g4 {[%clk 0:03:04.2]} 34. h5 {[%clk 0:03:11.7]} 34... Qf7 {[%clk 0:02:48]} 35.
Qa3 {[%clk 0:02:54]} 35... Rcc6 {[%clk 0:02:35.7]} 36. Qc3 {[%clk 0:02:30]}
36... Rc8 {[%clk 0:02:25.6]} 37. Qa3 {[%clk 0:02:17.3]} 37... Rcc6 {[%clk
0:02:24.3]} 38. Qc3 {[%clk 0:02:18.2]} 38... Rc8 {[%clk 0:02:25]} 1/2-1/2

[Event "GrandPrix_30.05"]
[Site "Chess.com"]
[Date "2020.05.30"]
[Round "7"]
[White "SuperFineHipster"]
[Black "Magicmaster17"]
[Result "0-1"]
[WhiteElo "2212"]
[BlackElo "2411"]
[TimeControl "600+2"]
[EndTime "11:24:05 PDT"]
[Termination "Magicmaster17 won by resignation"]

1. Nf3 {[%clk 0:10:01.9]} 1... Nf6 {[%clk 0:09:58.5]} 2. c4 {[%clk 0:10:01.3]}
2... g6 {[%clk 0:09:59.6]} 3. d4 {[%clk 0:10:02.4]} 3... Bg7 {[%clk 0:10:00.2]}
4. Nc3 {[%clk 0:10:03.8]} 4... d5 {[%clk 0:10:01.5]} 5. Bf4 {[%clk 0:10:02.9]}
5... O-O {[%clk 0:09:57.1]} 6. e3 {[%clk 0:10:00.7]} 6... c5 {[%clk 0:09:57.5]}
7. dxc5 {[%clk 0:10:00.6]} 7... Ne4 {[%clk 0:09:58]} 8. Rc1 {[%clk 0:09:35.6]}
8... Nd7 {[%clk 0:09:58.3]} 9. cxd5 {[%clk 0:09:26.8]} 9... Qa5 {[%clk
0:09:36.5]} 10. Nd4 {[%clk 0:09:05.6]} 10... Ndxc5 {[%clk 0:09:36.7]} 11. Bc4
{[%clk 0:09:03]} 11... Nxc3 {[%clk 0:09:14.9]} 12. bxc3 {[%clk 0:09:00]} 12...
Bd7 {[%clk 0:09:16]} 13. O-O {[%clk 0:08:56]} 13... Na4 {[%clk 0:08:09.6]} 14.
Bb3 {[%clk 0:06:36.9]} 14... Nxc3 {[%clk 0:07:40.2]} 15. Qd2 {[%clk 0:06:34.6]}
15... Rac8 {[%clk 0:07:41.4]} 16. Rc2 {[%clk 0:05:32.3]} 16... b5 {[%clk
0:07:03.1]} 17. a3 {[%clk 0:05:14.8]} 17... Rc5 {[%clk 0:06:46.9]} 18. Rfc1
{[%clk 0:04:38.1]} 18... Rfc8 {[%clk 0:06:45.4]} 19. f3 {[%clk 0:03:39.8]} 19...
Qxa3 {[%clk 0:05:59.8]} 20. Bg3 {[%clk 0:02:06.3]} 20... b4 {[%clk 0:05:44.6]}
21. Bh4 {[%clk 0:01:39.7]} 21... Kf8 {[%clk 0:05:09.8]} 22. d6 {[%clk
0:01:34.6]} 22... e5 {[%clk 0:04:45.4]} 23. Ne6+ {[%clk 0:01:01.9]} 23... fxe6
{[%clk 0:04:43.4]} 24. Bxe6 {[%clk 0:01:01.7]} 24... Bxe6 {[%clk 0:03:39.8]} 25.
d7 {[%clk 0:01:02]} 25... Bxd7 {[%clk 0:03:36.4]} 26. Qxd7 {[%clk 0:01:03.9]}
26... R5c7 {[%clk 0:03:34.8]} 27. Be7+ {[%clk 0:00:57.3]} 27... Kf7 {[%clk
0:03:17.7]} 28. Bxb4+ {[%clk 0:00:57.9]} 28... Rxd7 {[%clk 0:03:16.9]} 29. Bxa3
{[%clk 0:00:59.3]} 29... Ne2+ {[%clk 0:03:01.7]} 0-1

[Event "GrandPrix_30.05"]
[Site "Chess.com"]
[Date "2020.05.30"]
[Round "7"]
[White "Khvicha_Supatashvili"]
[Black "moro182"]
[Result "0-1"]
[WhiteElo "2273"]
[BlackElo "2512"]
[TimeControl "600+2"]
[EndTime "11:24:11 PDT"]
[Termination "moro182 won by resignation"]

1. d4 {[%clk 0:10:00.5]} 1... Nf6 {[%clk 0:09:59.6]} 2. c4 {[%clk 0:10:01]} 2...
e6 {[%clk 0:10:00.7]} 3. Nf3 {[%clk 0:10:01.3]} 3... a6 {[%clk 0:10:00.3]} 4.
Nc3 {[%clk 0:09:52.6]} 4... d5 {[%clk 0:10:01]} 5. cxd5 {[%clk 0:09:52.9]} 5...
exd5 {[%clk 0:10:02.9]} 6. Bf4 {[%clk 0:09:53]} 6... Bd6 {[%clk 0:09:51.4]} 7.
Bg3 {[%clk 0:09:53.4]} 7... O-O {[%clk 0:09:49.6]} 8. e3 {[%clk 0:09:54.5]} 8...
Bf5 {[%clk 0:09:45.4]} 9. Qb3 {[%clk 0:09:43.9]} 9... Nc6 {[%clk 0:09:40.7]} 10.
a3 {[%clk 0:09:39.9]} 10... Na5 {[%clk 0:09:39]} 11. Qa4 {[%clk 0:09:18.8]}
11... Bxg3 {[%clk 0:09:22.5]} 12. hxg3 {[%clk 0:09:17]} 12... c6 {[%clk
0:09:22.5]} 13. b4 {[%clk 0:08:46.1]} 13... Nc4 {[%clk 0:09:19.3]} 14. Bxc4
{[%clk 0:08:45.8]} 14... dxc4 {[%clk 0:09:21.2]} 15. Ne5 {[%clk 0:08:30.6]}
15... Re8 {[%clk 0:09:03.5]} 16. Qd1 {[%clk 0:08:17.8]} 16... a5 {[%clk
0:08:44.8]} 17. Rc1 {[%clk 0:07:20.3]} 17... axb4 {[%clk 0:08:36.5]} 18. axb4
{[%clk 0:07:19.9]} 18... Qd6 {[%clk 0:08:24.9]} 19. g4 {[%clk 0:07:18.9]} 19...
Bg6 {[%clk 0:08:08.3]} 20. f4 {[%clk 0:06:02.3]} 20... Bd3 {[%clk 0:07:44.8]}
21. g5 {[%clk 0:05:53.9]} 21... Nd5 {[%clk 0:07:38.4]} 22. Kf2 {[%clk
0:04:48.2]} 22... Nxc3 {[%clk 0:06:03.5]} 23. Rxc3 {[%clk 0:04:45.7]} 23... Ra2+
{[%clk 0:06:04.9]} 24. Kg3 {[%clk 0:04:36.2]} 24... Be4 {[%clk 0:06:05.9]} 25.
Rh2 {[%clk 0:04:22.9]} 25... b5 {[%clk 0:05:49.1]} 26. Qg4 {[%clk 0:03:28.9]}
26... Qxb4 {[%clk 0:05:15.1]} 27. f5 {[%clk 0:03:07.4]} 27... Bd5 {[%clk
0:04:23.7]} 28. Qh5 {[%clk 0:01:32.9]} 28... Qxc3 {[%clk 0:04:06.6]} 29. Qxh7+
{[%clk 0:01:31.1]} 29... Kf8 {[%clk 0:04:07.4]} 30. f6 {[%clk 0:00:32.4]} 30...
Qxe3+ {[%clk 0:03:58.5]} 31. Nf3 {[%clk 0:00:30.2]} 31... Rxg2+ {[%clk 0:03:48]}
0-1

[Event "GrandPrix_30.05"]
[Site "Chess.com"]
[Date "2020.05.30"]
[Round "7"]
[White "viktorskliarov"]
[Black "Gareth-Bale11"]
[Result "1/2-1/2"]
[WhiteElo "2245"]
[BlackElo "2415"]
[TimeControl "600+2"]
[EndTime "11:24:17 PDT"]
[Termination "Game drawn by repetition"]

1. e4 {[%clk 0:09:55.4]} 1... c5 {[%clk 0:09:59.6]} 2. Nf3 {[%clk 0:09:54]} 2...
d6 {[%clk 0:10:00.7]} 3. d4 {[%clk 0:09:25.6]} 3... cxd4 {[%clk 0:10:02.6]} 4.
Qxd4 {[%clk 0:09:25.7]} 4... a6 {[%clk 0:09:59.5]} 5. Be3 {[%clk 0:09:25.5]}
5... Nc6 {[%clk 0:09:48.1]} 6. Qd2 {[%clk 0:09:25.9]} 6... Nf6 {[%clk
0:09:35.2]} 7. Nc3 {[%clk 0:09:25.8]} 7... Ng4 {[%clk 0:09:34.8]} 8. O-O-O
{[%clk 0:08:48.8]} 8... Nxe3 {[%clk 0:09:31.4]} 9. Qxe3 {[%clk 0:08:48.9]} 9...
e6 {[%clk 0:09:32.9]} 10. Kb1 {[%clk 0:08:13.4]} 10... Be7 {[%clk 0:09:31.5]}
11. h4 {[%clk 0:08:14.4]} 11... b5 {[%clk 0:09:25.6]} 12. e5 {[%clk 0:07:31.1]}
12... d5 {[%clk 0:09:23.1]} 13. Ne2 {[%clk 0:07:02.3]} 13... Bd7 {[%clk
0:08:57.1]} 14. Ned4 {[%clk 0:06:24.3]} 14... Na5 {[%clk 0:08:55.2]} 15. h5
{[%clk 0:06:06.1]} 15... h6 {[%clk 0:08:51.7]} 16. g4 {[%clk 0:06:05.4]} 16...
Rc8 {[%clk 0:08:47.5]} 17. Rg1 {[%clk 0:05:59.9]} 17... Nc4 {[%clk 0:08:43.9]}
18. Bxc4 {[%clk 0:05:59.8]} 18... bxc4 {[%clk 0:08:43.4]} 19. g5 {[%clk
0:05:33.6]} 19... hxg5 {[%clk 0:08:39.3]} 20. Nxg5 {[%clk 0:05:33.5]} 20... c3
{[%clk 0:08:25.5]} 21. b3 {[%clk 0:05:28.3]} 21... Qa5 {[%clk 0:08:12.7]} 22.
Qf4 {[%clk 0:03:26.4]} 22... Qa3 {[%clk 0:06:54.4]} 23. Qxf7+ {[%clk 0:01:48.3]}
23... Kd8 {[%clk 0:06:54.1]} 24. Ndxe6+ {[%clk 0:01:36.5]} 24... Bxe6 {[%clk
0:06:55.3]} 25. Nxe6+ {[%clk 0:01:37.8]} 25... Kd7 {[%clk 0:06:56.4]} 26. Rxd5+
{[%clk 0:01:31.1]} 26... Kc6 {[%clk 0:06:57.3]} 27. Rc5+ {[%clk 0:00:29.8]}
27... Bxc5 {[%clk 0:06:49.8]} 28. Nd4+ {[%clk 0:00:26.9]} 28... Kb6 {[%clk
0:06:11.6]} 29. Rg6+ {[%clk 0:00:26.7]} 29... Ka5 {[%clk 0:06:09.4]} 30. b4+
{[%clk 0:00:20.1]} 30... Kxb4 {[%clk 0:04:58]} 31. Qb7+ {[%clk 0:00:20.2]} 31...
Kc4 {[%clk 0:04:53]} 32. Qf7+ {[%clk 0:00:20.1]} 32... Kb4 {[%clk 0:04:11.5]}
33. Qb7+ {[%clk 0:00:20]} 33... Kc4 {[%clk 0:04:03.5]} 34. Qf7+ {[%clk
0:00:20.4]} 34... Kb4 {[%clk 0:03:49.8]} 1/2-1/2

[Event "GrandPrix_30.05"]
[Site "Chess.com"]
[Date "2020.05.30"]
[Round "7"]
[White "grzechu96"]
[Black "kotmizer"]
[Result "1-0"]
[WhiteElo "2401"]
[BlackElo "2208"]
[TimeControl "600+2"]
[EndTime "11:24:21 PDT"]
[Termination "grzechu96 won by resignation"]

1. e4 {[%clk 0:10:01.9]} 1... e5 {[%clk 0:09:59.9]} 2. Nf3 {[%clk 0:10:03]} 2...
Nc6 {[%clk 0:10:00.8]} 3. Bc4 {[%clk 0:10:04.3]} 3... Nf6 {[%clk 0:10:00.9]} 4.
d3 {[%clk 0:10:04.8]} 4... Be7 {[%clk 0:10:01.2]} 5. O-O {[%clk 0:10:03.2]} 5...
O-O {[%clk 0:10:01.6]} 6. a4 {[%clk 0:10:04.5]} 6... d6 {[%clk 0:10:01.2]} 7. a5
{[%clk 0:10:05.5]} 7... a6 {[%clk 0:09:48.1]} 8. h3 {[%clk 0:09:55.5]} 8... Be6
{[%clk 0:09:43.6]} 9. Nbd2 {[%clk 0:09:53.8]} 9... h6 {[%clk 0:09:29.6]} 10. c3
{[%clk 0:09:54.8]} 10... d5 {[%clk 0:09:24.5]} 11. exd5 {[%clk 0:09:54.5]} 11...
Nxd5 {[%clk 0:09:23.3]} 12. Re1 {[%clk 0:09:53.5]} 12... Bf6 {[%clk 0:08:58]}
13. Ne4 {[%clk 0:09:22.9]} 13... Be7 {[%clk 0:08:56.7]} 14. Ng3 {[%clk
0:09:24.2]} 14... Qd6 {[%clk 0:08:43]} 15. Qe2 {[%clk 0:09:07.7]} 15... Nf4
{[%clk 0:08:14.2]} 16. Bxf4 {[%clk 0:09:08.5]} 16... exf4 {[%clk 0:08:14.7]} 17.
Ne4 {[%clk 0:09:09.7]} 17... Qd7 {[%clk 0:08:12]} 18. Bxe6 {[%clk 0:09:10.5]}
18... Qxe6 {[%clk 0:08:12.8]} 19. d4 {[%clk 0:09:05.4]} 19... Rad8 {[%clk
0:08:06.3]} 20. Ned2 {[%clk 0:08:44]} 20... Qd7 {[%clk 0:07:48.4]} 21. Nc4
{[%clk 0:08:41.4]} 21... Rfe8 {[%clk 0:07:19.9]} 22. Nfe5 {[%clk 0:08:41.9]}
22... Nxe5 {[%clk 0:07:19.1]} 23. Nxe5 {[%clk 0:08:43.8]} 23... Qd5 {[%clk
0:07:10]} 24. Qf3 {[%clk 0:07:47.6]} 24... Qxf3 {[%clk 0:06:30.3]} 25. Nxf3
{[%clk 0:07:49.5]} 25... Bd6 {[%clk 0:06:30.9]} 26. b4 {[%clk 0:07:46.9]} 26...
c6 {[%clk 0:06:25.9]} 27. Kf1 {[%clk 0:07:42.9]} 27... f6 {[%clk 0:06:11.4]} 28.
Rxe8+ {[%clk 0:07:40.7]} 28... Rxe8 {[%clk 0:06:11.9]} 29. Re1 {[%clk
0:07:41.8]} 29... Rd8 {[%clk 0:06:11.2]} 30. Ke2 {[%clk 0:07:39.3]} 30... Kf7
{[%clk 0:06:09.7]} 31. Nd2 {[%clk 0:07:24.3]} 31... g5 {[%clk 0:06:03.2]} 32.
Ne4 {[%clk 0:07:11.8]} 32... f5 {[%clk 0:05:31.2]} 33. Nxd6+ {[%clk 0:04:05.2]}
33... Rxd6 {[%clk 0:05:29]} 34. Kd3 {[%clk 0:04:06.8]} 34... Re6 {[%clk
0:05:05.4]} 35. Rxe6 {[%clk 0:02:32.7]} 35... Kxe6 {[%clk 0:05:03.8]} 36. f3
{[%clk 0:01:40.6]} 36... h5 {[%clk 0:05:00]} 37. c4 {[%clk 0:01:38.1]} 37... Kd6
{[%clk 0:04:55.1]} 38. c5+ {[%clk 0:01:33.3]} 38... Kd5 {[%clk 0:04:45]} 39. Kc3
{[%clk 0:01:33.4]} 39... g4 {[%clk 0:03:58.1]} 40. h4 {[%clk 0:01:29.6]} 40...
Ke6 {[%clk 0:03:54.5]} 41. Kc4 {[%clk 0:01:29.3]} 41... Kf6 {[%clk 0:03:49.8]}
42. d5 {[%clk 0:01:23.3]} 42... Ke5 {[%clk 0:03:49.5]} 43. d6 {[%clk 0:01:23.6]}
43... Ke6 {[%clk 0:03:37.3]} 44. Kd4 {[%clk 0:01:23.4]} 1-0